bitfinex-derivatives/quotes_ETHF0:USTF0_20251024
["timestamp","ask_amount","ask_price","bid_price","bid_amount"]
[1761268015404,0.3375,3873.4,3873.2,9.814]
[1761268015808,0.2272,3873.3,3873.2,9.814]
[1761268016113,0.783,3873.3,3873.2,9.814]
[1761268016814,0.783,3873.3,3873.2,9.9964]
[1761268017314,0.5647,3873.3,3873.2,10.1788]
[1761268017512,0.3375,3873.3,3873.2,10.1788]
[1761268017715,0.4796,3873.5,3873.4,1.01178]
[1761268017914,0.4796,3873.5,3873.4,1.76229399]
[1761268018608,0.1421,3874.0,3873.6,0.46455]
[1761268018609,0.3375,3873.9,3873.6,0.46455]
[1761268018816,0.783,3873.9,3873.8,0.3648]
[1761268019715,0.1315,3873.5,3873.4,0.1822]
[1761268020014,0.4489,3873.2,3873.1,1.39733399]
[1761268020218,0.7788,3873.2,3873.1,10.30453399]
[1761268020717,0.7788,3873.2,3873.1,10.48673399]
[1761268020718,0.5581,3873.2,3873.1,10.48673399]
[1761268020919,0.3299,3873.2,3873.1,10.48673399]
[1761268021715,0.5581,3873.2,3873.1,10.30453399]
[1761268021916,0.4489,3872.8,3872.7,4.0302]
[1761268022118,0.4489,3872.8,3872.7,9.5304]
[1761268022119,0.7788,3872.8,3872.7,9.5304]
[1761268022313,0.7788,3872.8,3872.7,0.3644]
[1761268022515,0.7788,3872.8,3872.7,10.27991399]
[1761268022920,0.7788,3872.8,3872.7,1.11491399]
[1761268023221,0.7788,3872.8,3872.7,10.27991399]
[1761268023620,0.7788,3872.8,3872.7,1.11491399]
[1761268023811,0.7788,3872.8,3872.7,10.27991399]
[1761268026420,0.7788,3872.8,3872.7,1.11491399]
[1761268026724,0.7788,3872.8,3872.7,9.5294]
[1761268028512,0.4489,3872.8,3872.4,0.1822]
[1761268028718,0.9103,3872.5,3872.4,0.1822]
[1761268028925,0.9103,3872.5,3872.4,9.3472]
[1761268029218,0.92844371,3872.8,3872.4,9.7116]
[1761268029522,1.52165621,3873.0,3872.8,0.5466]
[1761268029523,0.3299,3872.9,3872.8,0.5466]
[1761268030009,0.3299,3872.9,3872.8,9.7116]
[1761268030516,0.3299,3873.0,3872.9,0.5466]
[1761268032423,0.4614,3873.0,3872.9,0.5466]
[1761268032622,0.9103,3873.0,3872.9,9.3462]
[1761268033132,0.4614,3873.0,3872.9,9.7106]
[1761268034925,0.6896,3873.0,3872.9,9.5284]
[1761268035126,0.9103,3873.0,3872.9,9.5284]
[1761268036421,0.9103,3873.0,3872.9,0.3644]
[1761268036626,0.6896,3872.5,3872.4,0.8291]
[1761268036814,0.6896,3872.5,3872.4,9.9931]
[1761268037428,0.1315,3873.0,3872.4,10.1753]
[1761268037622,0.7788,3872.8,3872.7,0.82906]
[1761268037820,0.7788,3872.8,3872.7,0.3644]
[1761268038326,0.7788,3872.7,3872.6,9.164]
[1761268038725,0.7788,3872.7,3872.6,9.3462]
[1761268039224,0.7788,3872.7,3872.6,0.1822]
[1761268039431,0.7788,3872.4,3872.3,0.18466647]
[1761268040429,0.7788,3872.4,3872.3,0.00246647]
[1761268041631,0.7788,3872.4,3872.3,0.18466647]
[1761268042421,0.7788,3872.4,3872.3,0.00246647]
[1761268043632,0.7788,3872.4,3872.3,0.18466647]
[1761268044330,0.3299,3872.8,3872.7,1.01126]
[1761268044525,0.1315,3873.0,3872.9,1.01124]
[1761268044725,0.2282,3873.3,3873.2,0.3644]
[1761268044925,0.78644965,3873.3,3873.2,0.3644]
[1761268045128,1.00714965,3873.3,3873.2,0.3644]
[1761268047225,0.3484,3873.2,3872.8,0.64705]
[1761268047426,0.9434,3873.0,3872.9,0.1824]
[1761268047737,0.8091,3872.8,3872.7,0.64706]
[1761268048233,0.8091,3872.8,3872.7,0.82946]
[1761268049538,0.3553,3873.0,3872.9,1.01124]
[1761268049740,0.3553,3873.0,3872.9,1.85605814]
[1761268050633,0.2341,3873.4,3873.3,0.82899]
[1761268051034,0.5894,3873.4,3873.3,0.82899]
[1761268051439,0.3553,3873.4,3873.3,1.01119]
[1761268051736,0.3553,3872.9,3872.6,0.1822]
[1761268051934,0.8057,3872.4,3871.8,1.38221444]
[1761268052140,0.8057,3872.4,3871.9,0.46475]
[1761268052634,0.8057,3872.4,3871.8,7.032]
[1761268052635,0.8057,3872.4,3872.1,0.46473]
[1761268053637,0.8057,3872.4,3871.9,0.46475]
[1761268053938,0.8057,3872.4,3872.3,0.36686647]
[1761268057942,0.8057,3872.4,3872.3,0.83157647]
[1761268058648,0.8057,3872.4,3872.3,0.36686647]
[1761268059040,0.8057,3872.4,3872.3,0.54906647]
[1761268059041,0.3553,3872.4,3872.3,0.54906647]
[1761268060047,0.5894,3872.4,3872.3,0.54906647]
[1761268060241,0.3553,3872.7,3872.6,0.3644]
[1761268060552,0.3553,3872.7,3872.6,0.5466]
[1761268060741,0.3739,3873.0,3872.9,0.82904]
[1761268060942,0.1398,3873.0,3872.9,1.01124]
[1761268061346,0.8057,3872.9,3872.8,0.46465]
[1761268061749,0.8057,3872.9,3872.8,0.82905]
[1761268062047,0.8057,3872.9,3872.8,0.3644]
[1761268066442,0.8057,3872.4,3872.3,0.46717647]
[1761268066642,0.8057,3872.4,3872.3,9.99257647]
[1761268067451,0.8057,3872.4,3872.3,10.17477647]
[1761268067652,0.5894,3872.4,3872.3,10.17477647]
[1761268069759,0.8057,3872.4,3872.3,9.99257647]
[1761268070252,0.8057,3872.4,3872.3,0.64937647]
[1761268070447,0.8057,3872.4,3872.3,9.80937647]
[1761268070653,0.8057,3872.4,3872.3,9.99157647]
[1761268074154,0.3553,3872.4,3872.3,10.17377647]
[1761268074455,0.5894,3872.4,3872.3,10.17377647]
[1761268075655,0.5894,3872.4,3872.3,11.01859461]
[1761268075852,0.3553,3872.4,3872.3,11.01859461]
[1761268076057,0.5902,3873.0,3872.9,0.1822]
[1761268076356,0.81920848,3873.0,3872.9,0.1822]
[1761268076556,1.17450848,3873.0,3872.9,0.1822]
[1761268076957,1.17450848,3873.0,3872.9,0.3644]
[1761268078262,0.7292,3873.0,3872.9,0.5466]
[1761268078562,0.4951,3873.0,3872.9,0.5466]
[1761268079057,0.92844371,3873.4,3873.3,1.01239]
[1761268079058,0.2225,3873.4,3873.3,1.01239]
[1761268079563,0.5737,3873.4,3873.3,1.01239]
[1761268079862,0.3512,3873.4,3873.3,1.01239]
[1761268080254,0.8043,3873.4,3873.3,0.3652]
[1761268080454,0.8043,3873.4,3873.2,9.159]
[1761268080455,0.3512,3873.3,3873.2,9.159]
[1761268080656,0.8043,3873.3,3873.2,9.5242]
[1761268081162,0.5737,3873.3,3873.2,9.7068]
[1761268081760,0.5737,3873.3,3872.9,0.64723]
[1761268081761,0.4531,3873.3,3872.9,0.64723]
[1761268081958,0.9399,3873.0,3872.9,0.82983]
[1761268082156,0.9399,3873.0,3872.9,9.98783]
[1761268085060,0.9399,3873.0,3872.9,0.82983]
[1761268085258,0.9399,3873.0,3872.9,9.98783]
[1761268088158,0.7093,3873.0,3872.9,1.01243]
[1761268088359,0.7093,3873.0,3872.9,10.16943]
[1761268088662,0.7093,3873.0,3872.9,10.82641489]
[1761268088862,0.9399,3873.0,3872.9,0.1826]
[1761268089163,0.354,3873.5,3873.4,0.1826]
[1761268089366,0.92844371,3873.9,3873.8,0.1826]
[1761268089667,1.85536465,3874.6,3874.3,0.5478]
[1761268089668,0.3512,3874.4,3874.3,0.5478]
[1761268089865,0.3512,3874.4,3874.3,9.7048]
[1761268090063,0.35302304,3874.6,3874.5,0.5478]
[1761268090263,0.80612304,3874.6,3874.5,0.3652]
[1761268095270,0.80612304,3874.6,3874.5,0.5478]
[1761268095473,0.57552304,3874.6,3874.5,0.5478]
[1761268096365,0.00182304,3874.6,3874.5,0.5478]
[1761268096768,0.80612304,3874.6,3874.5,0.3652]
[1761268097869,0.80612304,3874.6,3874.5,0.1826]
[1761268098167,0.5737,3874.2,3874.1,1.48668489]
[1761268098367,0.5737,3874.2,3874.1,8.61268489]
[1761268098673,0.3581,3874.5,3874.4,0.82966]
[1761268098974,0.3581,3874.5,3874.4,1.66924489]
[1761268099159,0.7093,3874.5,3874.4,1.48664489]
[1761268099363,0.00182304,3874.6,3874.5,0.5478]
[1761268099565,0.00182304,3874.6,3874.5,9.7008]
[1761268100477,0.57552304,3874.6,3874.5,0.3652]
[1761268100668,0.35302304,3874.6,3874.5,8.3718]
[1761268100978,0.00182304,3874.6,3874.5,0.5478]
[1761268101169,0.00182304,3874.6,3874.5,9.7008]
[1761268101475,0.35302304,3874.6,3874.5,9.7008]
[1761268103075,0.00182304,3874.6,3874.5,9.7008]
[1761268104265,0.5737,3875.8,3875.7,0.3652]
[1761268104469,0.3512,3875.8,3875.7,10.35678489]
[1761268104674,0.8043,3875.8,3875.7,10.17418489]
[1761268105274,0.80682667,3875.8,3875.7,10.1770708]
[1761268105771,0.57622667,3875.8,3875.7,10.3596708]
[1761268105974,0.35372667,3875.8,3875.7,10.3596708]
[1761268106171,0.00252667,3875.8,3875.7,10.3596708]
[1761268111770,0.78512667,3875.8,3875.7,9.52008591]
[1761268112076,0.78512667,3875.8,3875.7,9.51708591]
[1761268113374,0.33322667,3875.8,3875.7,9.69928591]
[1761268114173,0.33322667,3875.8,3875.7,0.55028591]
[1761268114382,0.78512667,3875.8,3875.7,9.33348591]
[1761268115883,0.56712667,3875.8,3875.7,9.69788591]
[1761268116580,0.78512667,3875.8,3875.7,9.51568591]
[1761268116984,0.78512667,3875.8,3875.7,0.36768591]
[1761268117183,0.78512667,3875.8,3875.7,9.51568591]
[1761268119083,0.33322667,3875.8,3875.7,9.69788591]
[1761268119290,0.00252667,3875.8,3875.7,9.69788591]
[1761268120289,0.00252667,3875.8,3875.7,9.90208103]
[1761268120582,0.3307,3876.5,3876.4,1.01082]
[1761268120783,0.5646,3876.9,3876.8,0.3644]
[1761268120985,0.5646,3876.9,3876.8,10.35058489]
[1761268121380,0.56668154,3876.9,3876.8,10.35058489]
[1761268122280,0.33278154,3876.9,3876.8,10.35058489]
[1761268123686,0.56668154,3876.9,3876.8,10.16838489]
[1761268124689,0.33278154,3876.9,3876.8,10.35058489]
[1761268126286,0.00208154,3876.9,3876.8,10.35058489]
[1761268126680,0.78468154,3876.9,3876.8,10.16838489]
[1761268126884,0.78468154,3876.9,3876.8,9.5114]
[1761268128390,0.78468154,3876.9,3876.8,9.3272]
[1761268128687,0.78468154,3876.9,3876.8,9.145]
[1761268129079,0.78468154,3876.9,3876.8,9.3272]
[1761268129482,0.78468154,3876.9,3876.8,0.1822]
[1761268129683,0.78468154,3876.9,3876.8,9.5084]
[1761268130484,0.78468154,3876.9,3876.8,0.3644]
[1761268130893,0.78468154,3876.9,3876.8,7.5012]
[1761268131186,0.78468154,3876.9,3876.8,9.3262]
[1761268131584,0.3307,3876.8,3876.5,0.83918489]
[1761268131781,0.45398154,3876.9,3876.4,4.0302]
[1761268131782,0.1333,3876.5,3876.4,4.0302]
[1761268132092,0.6979,3876.5,3876.4,11.6054]
[1761268132283,0.6979,3876.5,3876.4,7.7574]
[1761268132689,0.9159,3876.5,3876.4,7.7574]
[1761268132986,0.9159,3876.5,3876.4,7.5752]
[1761268133386,0.9159,3876.5,3876.4,7.7574]
[1761268134186,0.6979,3876.5,3876.4,7.9396]
[1761268134387,0.3307,3876.8,3876.7,1.01078]
[1761268134583,0.00208154,3876.9,3876.8,0.5466]
[1761268135186,0.33278154,3876.9,3876.8,0.5466]
[1761268135385,0.56232469,3876.9,3876.8,0.5466]
[1761268135691,0.33278154,3876.9,3876.8,0.5466]
[1761268140395,0.56668154,3876.9,3876.8,0.3644]
[1761268140695,0.80358154,3876.9,3876.8,0.1822]
[1761268141394,0.9354,3876.5,3876.4,0.1815]
[1761268141596,0.8055,3875.8,3875.7,0.00288591]
[1761268141898,0.8055,3875.8,3875.0,7.8485]
[1761268141899,0.8055,3875.1,3875.0,7.8485]
[1761268142089,0.5686,3875.1,3875.0,8.03]
[1761268142897,0.5686,3875.1,3875.0,8.03226274]
[1761268143898,0.8055,3875.1,3875.0,8.03226274]
[1761268145790,0.8055,3875.1,3875.0,0.00226274]
[1761268147797,0.8055,3875.1,3875.0,0.18376274]
[1761268148101,0.8055,3875.1,3875.0,0.00226274]
[1761268149000,0.8055,3875.1,3875.0,0.54676274]
[1761268149001,0.3377,3875.1,3875.0,0.54676274]
[1761268149292,0.5686,3875.1,3875.0,0.36526274]
[1761268149498,0.8055,3875.1,3875.0,0.36526274]
[1761268150700,0.3377,3875.1,3875.0,0.54676274]
[1761268152202,0.8055,3875.1,3875.0,0.36526274]
[1761268156201,0.8055,3875.1,3875.0,0.00226274]
[1761268156401,0.1299,3874.5,3874.2,4.211]
[1761268156602,0.9354,3874.0,3873.9,0.363]
[1761268156910,0.5686,3873.3,3873.2,1.15071376]
[1761268157411,0.5686,3873.3,3873.2,10.29371376]
[1761268157710,0.5686,3873.3,3873.2,10.29560871]
[1761268157711,0.57065065,3873.3,3873.2,10.29560871]
[1761268157913,0.80755065,3873.3,3873.2,10.29560871]
[1761268158608,0.80755065,3873.3,3873.2,10.47710871]
[1761268158914,0.80755065,3873.3,3873.2,9.68939495]
[1761268159606,0.33975065,3873.3,3873.2,9.68939495]
[1761268160807,0.00205065,3873.3,3873.2,9.68939495]
[1761268163807,0.4676,3874.5,3874.2,0.3588]
[1761268164012,0.1299,3875.0,3874.7,0.82321]
[1761268164310,0.3377,3874.9,3874.8,0.5382]
[1761268164504,0.3377,3874.9,3874.8,9.6822]
[1761268164704,0.5686,3874.9,3874.8,9.6822]
[1761268164905,0.57173681,3874.9,3874.8,9.6822]
[1761268165308,0.57173681,3874.9,3874.8,9.5028]
[1761268168611,0.57173681,3874.9,3874.8,9.6823]
[1761268170613,0.57173681,3874.9,3874.8,9.5028]
[1761268171415,0.4497,3874.3,3874.0,3.848]
[1761268171620,0.4497,3874.3,3874.2,0.3598]
[1761268171920,0.8027,3874.3,3874.2,0.3598]
[1761268173216,0.353,3874.2,3874.1,9.143]
[1761268173414,0.4497,3874.2,3873.4,0.1799]
[1761268173619,0.1304,3874.5,3873.9,0.64441]
[1761268173620,0.9331,3874.0,3873.9,0.64441]
[1761268173919,0.4834,3874.0,3873.9,10.14721]
[1761268175918,0.7141,3874.0,3873.9,9.96731]
[1761268176327,0.9331,3874.0,3873.9,9.96731]
[1761268178627,0.7141,3874.0,3873.9,9.96731]
[1761268178923,0.353,3874.7,3874.6,0.3598]
[1761268179120,0.8027,3874.7,3874.6,0.3598]
[1761268180630,0.9331,3874.5,3874.4,9.3229]
[1761268182126,0.7141,3874.5,3874.4,9.6827]
[1761268182328,0.4834,3874.5,3874.4,9.6827]
[1761268182837,0.5837,3874.8,3874.7,0.1799]
[1761268183124,0.5837,3874.8,3874.7,0.3598]
[1761268184421,0.8027,3874.8,3874.7,0.1799]
[1761268185125,0.8027,3874.8,3874.7,0.3598]
[1761268186129,0.353,3874.7,3874.6,0.46443]
[1761268186431,0.353,3874.7,3874.1,0.73859524]
[1761268186432,0.8027,3874.2,3874.1,0.64439]
[1761268186727,0.8027,3874.2,3874.1,9.78739]
[1761268187534,0.8027,3874.2,3874.1,9.96729]
[1761268187833,0.1304,3874.5,3874.4,0.82426]
[1761268187834,0.3611,3874.5,3874.4,0.82426]
[1761268188233,0.7141,3874.5,3874.4,0.82426]
[1761268188634,0.9331,3874.5,3874.4,0.82426]
[1761268188834,0.9331,3874.5,3874.4,0.64436]
[1761268189132,0.9331,3874.5,3874.4,0.3598]
[1761268189532,0.9331,3874.5,3874.4,9.142]
[1761268190633,0.9331,3874.5,3874.4,9.3219]
[1761268191236,0.8027,3874.3,3874.2,9.60648]
[1761268191841,0.8027,3874.3,3874.2,9.78638]
[1761268193236,0.8027,3874.3,3874.2,9.142]
[1761268193438,0.353,3874.2,3874.0,0.6444]
[1761268193636,0.8027,3874.2,3874.1,9.3219]
[1761268193846,0.5837,3874.7,3874.6,0.5397]
[1761268194133,0.82495767,3874.7,3874.6,0.3598]
[1761268194529,1.04395767,3874.7,3874.6,0.3598]
[1761268197435,1.04395767,3874.7,3874.6,0.1799]
[1761268200540,0.5842,3874.5,3874.4,0.64446]
[1761268200742,1.17685767,3874.5,3874.4,0.64446]
[1761268201145,0.7981,3874.1,3874.0,0.6445]
[1761268201335,0.7981,3874.1,3874.0,9.7855]
[1761268201535,0.7981,3874.1,3874.0,0.18]
[1761268202341,0.7981,3873.8,3873.7,0.82454]
[1761268203134,0.1375,3874.0,3873.9,0.46452]
[1761268203442,0.3682,3874.0,3873.9,0.82452]
[1761268203840,0.9356,3874.0,3873.9,0.82452]
[1761268204039,0.3514,3874.5,3874.0,0.4645]
[1761268204242,0.5842,3874.5,3874.4,0.18]
[1761268204443,0.82566557,3874.5,3874.4,0.18]
[1761268204645,1.17707473,3874.5,3874.4,0.18]
[1761268204939,0.59287473,3874.5,3874.4,0.54]
[1761268205346,0.3514,3874.5,3874.4,0.54]
[1761268205934,0.9356,3874.0,3873.9,1.09745444]
[1761268206244,0.3514,3874.0,3873.9,9.681]
[1761268206446,0.3514,3874.4,3874.3,0.36]
[1761268206747,0.59288294,3874.4,3874.3,0.54]
[1761268207140,0.59288294,3874.4,3874.3,1.00447]
[1761268207437,0.82358294,3874.4,3874.3,1.00447]
[1761268208046,0.82358294,3874.4,3874.3,0.82447]
[1761268208643,0.24148294,3874.4,3874.3,1.00447]
[1761268208955,0.35453681,3874.9,3874.8,1.00441]
[1761268209145,0.59670696,3874.9,3874.8,1.00441]
[1761268209644,1.04340696,3874.9,3874.8,0.18]
[1761268210149,0.24530696,3874.9,3874.8,0.54]
[1761268210446,0.35453681,3874.9,3874.8,0.54]
[1761268210945,0.00313681,3874.9,3874.8,0.54]
[1761268211147,1.27783673,3875.8,3875.7,0.18]
[1761268211339,1.85354161,3876.4,3876.3,0.82423]
[1761268211340,1.27783673,3876.4,3876.3,0.82423]
[1761268211547,0.59332095,3876.4,3876.3,1.66066054]
[1761268211751,0.3514,3876.4,3876.3,1.66066054]
[1761268212147,0.35325684,3876.4,3876.3,1.6631084]
[1761268215655,0.58395684,3876.4,3876.3,1.6631084]
[1761268215951,0.58395684,3876.4,3876.3,1.4831084]
[1761268216245,0.79995684,3876.4,3876.3,1.0188784]
[1761268216446,0.79995684,3876.4,3876.3,0.00244786]
[1761268216840,0.79995684,3876.4,3876.3,0.18244786]
[1761268217240,0.79995684,3876.4,3876.3,0.00244786]
[1761268218040,0.79995684,3876.4,3876.3,0.18244786]
[1761268219555,0.79995684,3876.4,3876.3,0.00244786]
[1761268219750,0.79995684,3876.4,3876.1,0.46424]
[1761268219751,5.44855684,3876.4,3874.2,5.67933739]
[1761268219951,5.44855684,3876.4,3873.8,1.83133739]
[1761268219952,0.2307,3873.9,3873.8,1.83133739]
[1761268220160,0.3514,3873.8,3872.4,0.8482818]
[1761268220345,0.65643054,3873.9,3872.4,0.8482818]
[1761268220346,0.3514,3873.3,3872.5,0.46469]
[1761268220540,0.3514,3873.3,3872.4,0.18]
[1761268220756,0.3537685,3873.3,3872.5,0.00266419]
[1761268221052,0.7196,3873.0,3872.9,0.83643054]
[1761268221248,0.9356,3873.0,3872.9,0.83643054]
[1761268221448,0.3514,3872.9,3872.6,0.65643054]
[1761268221649,0.5821,3872.9,3872.8,0.18]
[1761268222453,0.7981,3872.6,3872.5,0.00266419]
[1761268222655,0.7981,3872.6,3872.5,0.18266419]
[1761268223853,0.5821,3872.6,3872.5,0.36266419]
[1761268224057,0.3514,3872.6,3872.5,0.54266419]
[1761268225446,0.3682,3873.0,3872.5,0.54266419]
[1761268225752,0.0023685,3873.3,3873.2,0.54]
[1761268231359,0.7855685,3873.3,3872.8,0.1797]
[1761268231566,0.7832,3872.9,3872.8,0.1801]
[1761268231859,0.5492,3872.9,3872.8,0.3602]
[1761268233959,0.7832,3872.9,3872.8,0.3602]
[1761268235364,0.7832,3872.6,3872.5,0.18276419]
[1761268236365,0.7832,3872.6,3872.5,0.64745419]
[1761268237455,0.7832,3872.6,3872.5,0.18276419]
[1761268238757,0.7832,3872.6,3872.5,0.36286419]
[1761268238963,0.5492,3872.6,3872.5,0.36286419]
[1761268239166,0.7832,3872.6,3872.5,0.36286419]
[1761268239860,0.7832,3872.6,3872.5,0.00266419]
[1761268244258,0.7832,3872.6,3872.5,0.18276419]
[1761268244459,0.5492,3872.9,3872.8,0.5399]
[1761268245061,0.5492,3872.9,3872.8,0.3602]
[1761268246065,0.7832,3872.9,3872.8,0.1801]
[1761268246266,0.7832,3872.7,3872.6,0.46467]
[1761268246467,0.7832,3872.7,3872.6,0.1801]
[1761268249478,1.40460809,3872.7,3872.6,0.1801]
[1761268251075,0.7832,3872.6,3872.5,0.00266419]
[1761268251368,1.40460809,3872.6,3872.5,0.18276419]
[1761268251872,1.40460809,3872.6,3872.5,0.36286419]
[1761268253471,0.62140809,3872.6,3872.5,0.54256419]
[1761268253765,0.0023685,3873.3,3872.5,0.54256419]
[1761268253766,0.0023685,3873.3,3873.2,1.0045]
[1761268253972,0.85094999,3873.3,3873.2,0.8248]
[1761268254364,1.17294999,3873.3,3873.2,0.8248]
[1761268254775,1.40694999,3873.3,3873.2,0.8248]
[1761268261177,0.9376,3873.0,3872.9,3.848]
[1761268261376,1.55898149,3873.0,3872.9,3.848]
[1761268261578,1.55898149,3873.0,3872.9,4.028]
[1761268262476,1.55898149,3873.0,3872.9,4.208]
[1761268263281,1.55898149,3873.0,3872.9,4.028]
[1761268263780,1.55898149,3873.0,3872.9,4.208]
[1761268264872,1.34318149,3873.0,3872.9,4.208]
[1761268265071,1.55898149,3873.0,3872.9,4.208]
[1761268265478,1.34318149,3873.0,3872.9,4.388]
[1761268265979,1.34318149,3873.0,3872.9,0.54]
[1761268267081,1.34318149,3873.0,3872.9,0.36]
[1761268267279,0.7985,3872.9,3872.8,9.82065]
[1761268267481,1.41988149,3872.9,3872.8,9.82065]
[1761268268568,1.41988149,3872.9,3872.8,9.64065]
[1761268268775,0.10096149,3872.9,3872.8,14.02865]
[1761268268976,1.06393673,3874.0,3873.9,0.46452]
[1761268269183,0.1375,3874.0,3873.9,1.00452]
[1761268269573,0.7202,3874.0,3873.9,0.82452]
[1761268269887,0.93927635,3874.0,3873.9,0.82452]
[1761268270476,0.35727635,3874.0,3873.9,1.00452]
[1761268270980,0.49637635,3874.0,3873.9,1.00452]
[1761268271181,0.00327635,3874.0,3873.9,1.00452]
[1761268271872,0.35727635,3874.0,3873.9,1.00452]
[1761268273879,0.4915,3874.5,3874.4,0.36]
[1761268274075,0.4915,3874.5,3874.4,9.709]
[1761268274880,0.5836,3875.0,3874.9,0.8244]
[1761268275076,0.58688627,3875.0,3874.9,0.8244]
[1761268275385,0.94088627,3875.0,3874.9,0.8244]
[1761268276082,0.354,3874.9,3874.7,0.46442]
[1761268276384,0.7985,3874.2,3874.1,0.82449]
[1761268276582,0.7985,3874.2,3874.1,9.99249]
[1761268279686,0.5827,3874.2,3874.1,10.17249]
[1761268279879,0.354,3874.2,3874.1,10.17249]
[1761268283681,0.14238627,3875.0,3874.9,0.6444]
[1761268283887,0.14238627,3875.0,3874.9,1.0044]
[1761268283888,0.00328627,3875.0,3874.9,1.0044]
[1761268284185,0.4445,3875.9,3875.8,0.82429]
[1761268284384,0.7985,3875.9,3875.8,0.82429]
[1761268284988,0.80102915,3875.9,3875.8,0.82631515]
[1761268287179,0.80102915,3875.9,3875.8,0.64631515]
[1761268287992,0.80102915,3875.9,3875.8,0.46631515]
[1761268288991,0.35652915,3875.9,3875.8,1.00551515]
[1761268289294,0.58182915,3875.9,3875.8,1.00551515]
[1761268289493,0.58182915,3875.9,3875.8,0.82591515]
[1761268290488,0.80322915,3875.9,3875.8,0.46631515]
[1761268290887,0.80322915,3875.9,3875.8,0.82571515]
[1761268291381,0.80322915,3875.9,3875.8,0.00202515]
[1761268294599,6.39168797,3875.9,3875.8,0.00202515]
[1761268298190,6.63724653,3875.9,3875.2,0.46435]
[1761268298390,0.7746,3875.3,3875.2,0.46435]
[1761268298898,0.4658,3875.5,3875.4,1.00254]
[1761268299290,0.6902,3875.5,3875.4,1.00503827]
[1761268299491,0.6902,3875.5,3875.4,0.82563827]
[1761268299696,0.9103,3875.5,3875.4,0.82563827]
[1761268301402,0.6902,3875.5,3875.4,1.00503827]
[1761268301590,0.22692915,3875.9,3875.8,0.82309]
[1761268301796,0.22692915,3875.9,3875.8,0.46429]
[1761268301797,1.03684364,3875.9,3875.8,0.46429]
[1761268302196,1.36694364,3875.9,3875.8,0.46429]
[1761268302392,1.36694364,3875.9,3875.8,0.82309]
[1761268304404,1.36694364,3875.9,3875.8,0.64369]
[1761268304607,0.4445,3875.7,3875.6,0.64371]
[1761268304799,0.7746,3875.7,3875.6,0.64371]
[1761268305901,0.7746,3875.7,3875.4,0.46683827]
[1761268306105,0.9103,3875.5,3875.4,0.00249827]
[1761268307508,1.5004328,3875.5,3875.4,0.00249827]
[1761268310903,1.74662231,3875.5,3875.4,0.00249827]
[1761268311303,6.74662231,3875.5,3875.4,0.00249827]
[1761268311501,0.5545,3874.1,3874.0,4.0438]
[1761268312208,0.5545,3874.1,3874.0,4.2232]
[1761268312605,0.5545,3874.1,3874.0,4.69054567]
[1761268313312,0.3301,3874.1,3874.0,4.69054567]
[1761268313507,0.1357,3874.5,3874.0,4.69054567]
[1761268313508,0.3601,3874.5,3874.4,0.82326]
[1761268313703,0.3601,3874.5,3874.0,4.15234567]
[1761268313704,1.15093972,3875.3,3875.1,0.46437]
[1761268313906,1.15093972,3875.3,3874.0,4.24414567]
[1761268313907,0.5802,3875.0,3874.9,0.6438]
[1761268314106,0.9103,3875.0,3874.9,0.6438]
[1761268314312,1.50132398,3875.0,3874.9,0.6438]
[1761268314516,0.9103,3875.0,3874.9,0.6438]
[1761268314714,1.50124556,3875.0,3874.9,0.6438]
[1761268317217,0.9103,3875.0,3874.9,0.6438]
[1761268317413,0.9103,3875.0,3874.9,0.8232]
[1761268317717,0.9103,3875.0,3874.9,1.0026]
[1761268318420,1.50116274,3875.0,3874.9,0.6438]
[1761268319216,0.9103,3875.0,3874.9,0.6438]
[1761268319414,0.3456,3875.4,3875.3,0.64454]
[1761268319610,1.39891079,3875.4,3875.3,0.64454]
[1761268320518,0.8081,3875.3,3875.2,0.46435]
[1761268320918,0.3456,3875.2,3875.1,0.46437]
[1761268321119,0.3456,3875.2,3874.8,3.848]
[1761268321120,0.1355,3875.0,3874.8,3.848]
[1761268321417,0.8081,3874.9,3874.8,4.2084]
[1761268322616,0.8081,3874.9,3874.8,0.3604]
[1761268326718,0.8081,3874.9,3874.0,0.00283567]
[1761268326719,0.8081,3874.1,3874.0,0.00283567]
[1761268327019,0.1355,3874.5,3874.4,0.46446]
[1761268327225,0.3709,3874.5,3874.4,0.82486]
[1761268327723,0.7165,3874.5,3874.4,0.82486]
[1761268327922,0.9436,3874.5,3874.4,0.82486]
[1761268328729,0.1355,3875.0,3874.9,0.8248]
[1761268328730,0.598,3875.0,3874.9,0.8248]
[1761268328924,1.18884972,3875.0,3874.9,0.8248]
[1761268329333,1.18884972,3875.0,3874.9,0.6446]
[1761268329334,1.53444972,3875.0,3874.9,0.6446]
[1761268329534,1.53444972,3875.0,3874.9,0.4644]
[1761268329930,1.53444972,3875.0,3874.9,0.6446]
[1761268330435,1.53444972,3875.0,3874.9,0.8248]
[1761268333532,1.07194972,3875.0,3874.9,0.8248]
[1761268333733,1.07194972,3875.0,3874.9,1.005]
[1761268333936,1.30734972,3875.0,3874.9,0.8248]
[1761268334139,1.53444972,3875.0,3874.9,0.8248]
[1761268334944,1.53444972,3875.0,3874.9,0.6446]
[1761268336041,1.53444972,3875.0,3874.9,0.4644]
[1761268336243,0.581,3874.4,3874.3,1.00507]
[1761268336743,0.581,3874.4,3874.3,1.66148914]
[1761268337137,0.581,3874.4,3874.3,5.50948914]
[1761268337944,0.8081,3874.4,3874.3,4.67287]
[1761268339238,0.8081,3874.4,3874.3,3.848]
[1761268339439,0.8081,3874.4,3874.3,4.0282]
[1761268339643,1.40060629,3874.4,3874.3,4.0282]
[1761268342950,1.40060629,3874.4,3874.3,3.848]
[1761268343152,0.8081,3874.3,3874.2,0.64468]
[1761268343348,0.8081,3874.3,3874.2,1.48129914]
[1761268343745,1.06203972,3875.0,3874.7,0.1802]
[1761268343746,0.3456,3874.8,3874.7,0.1802]
[1761268343948,0.581,3874.8,3874.7,1.48123914]